fUSD/lending_fUSD_20251214
["ID","MTS","AMOUNT","RATE_DAILY","PERIOD"]
[398486315,1765732248591,-1000.0,0.00016831,2]
[398486316,1765732248602,-168.0,0.00016865,2]
[398486317,1765732248612,-168.0,0.00016872,2]
[398486318,1765732248622,-1105.23,0.00016885,2]
[398486319,1765732248632,-200.0,0.00016887,2]
[398486320,1765732248641,-500.0,0.00016887,2]
[398486321,1765732248650,-709.01628608,0.00016887,2]
[398486322,1765732248660,-225.18697532,0.00016887,2]
[398486323,1765732248670,-200.0,0.00016887,2]
[398486324,1765732248679,-150.11,0.0001689,2]
[398486325,1765732248689,-566.31927671,0.000169,2]
[398486326,1765732248699,-11382.67742867,0.000169,2]
[398486327,1765732248709,-4299.40899256,0.000169,2]
[398486328,1765732248719,-2830.0,0.00016917,2]
[398486329,1765732248728,-1607.0,0.00016949,2]
[398486330,1765732248738,-618.504,0.00016949,2]
[398486331,1765732248748,-1324.0,0.00016949,2]
[398486332,1765732248757,-1262.638,0.00016949,2]
[398486333,1765732248767,-589.0,0.00016949,2]
[398486334,1765732248777,-911.0,0.00016949,2]
[398486335,1765732248787,-1196.0,0.00016949,2]
[398486336,1765732248797,-4797.0,0.00016949,2]
[398486337,1765732248806,-6521.0,0.00016949,2]
[398486338,1765732248816,-2426.0,0.00016949,2]
[398486339,1765732248826,-481.15230225,0.00016968,2]
[398486340,1765732248835,-502.45598878,0.00016973,2]
[398486341,1765732248847,-316.06642423,0.00016973,2]
[398486342,1765732248857,-500.0,0.00016973,2]
[398486343,1765732248867,-520.19036077,0.00016973,2]
[398486344,1765732248878,-500.0,0.00016973,2]
[398486345,1765732248888,-332.87595848,0.00016973,2]
[398486346,1765732248900,-425.38775916,0.00016973,2]
[398486347,1765732248909,-184.69465724,0.00016973,2]
[398486348,1765732248919,-500.0,0.00016973,2]
[398486349,1765732248930,-500.0,0.00016973,2]
[398486350,1765732248940,-500.0,0.00016973,2]
[398486351,1765732248950,-500.0,0.00016973,2]
[398486352,1765732248961,-500.0,0.00016973,2]
[398486353,1765732248971,-500.63912744,0.00016973,2]
[398486354,1765732248983,-571.47913773,0.00016973,2]
[398486355,1765732248996,-500.0,0.00016973,2]
[398486356,1765732249006,-1347.81329607,0.00016973,2]
[398486357,1765732249016,-500.0,0.00016973,2]
[398486358,1765732249027,-600.0,0.00016986,2]
[398486359,1765732249040,-658.37055018,0.0001699,2]
[398486360,1765732249051,-658.37055018,0.0001699,2]
[398486361,1765732249061,-500.0,0.00016999,2]
[398486362,1765732249074,-500.0,0.00016999,2]
[398486363,1765732249083,-500.0,0.00016999,2]
[398486364,1765732249094,-500.0,0.00016999,2]
[398486365,1765732249105,-500.0,0.00016999,2]
[398486366,1765732249116,-500.0,0.00016999,2]
[398486367,1765732249128,-500.0,0.00016999,2]
[398486368,1765732249138,-500.0,0.00016999,2]
[398486369,1765732249148,-500.0,0.00016999,2]
[398486370,1765732249158,-197.337929,0.00016999,2]
[398486371,1765732249168,-141159.68862564,0.00017,2]
[398486372,1765732249178,-27481.29248901,0.00017,2]
[398486373,1765732249187,-750.0,0.00017,2]
[398486374,1765732249197,-2029.4653,0.00017,2]
[398486375,1765732249206,-2000.0,0.00017,2]
[398486376,1765732249216,-304814.65759364,0.00017,2]
[398486377,1765732249226,-5034.45632187,0.00017,2]
[398486378,1765732249239,-5030.45381239,0.00017,3]
[398486379,1765732249248,-250.0,0.00017,2]
[398486380,1765732249258,-2000.0,0.00017,2]
[398486381,1765732249267,-1000.0,0.00017,2]
[398486382,1765732249277,-3508939.50101644,0.00017,2]
[398486383,1765732251923,-300.0,0.000162,2]
[398486384,1765732251933,-151.0,0.00016438,2]
[398486385,1765732251942,-151.0,0.00016438,2]
[398486386,1765732251952,-459.358842,0.00016438,2]
[398486387,1765732251962,-151.0,0.00016438,2]
[398486388,1765732251971,-459.358842,0.00016438,2]
[398486389,1765732251981,-151.0,0.00016438,2]
[398486390,1765732251992,-151.0,0.00016438,2]
[398486391,1765732252003,-459.358842,0.00016438,2]
[398486392,1765732252012,-151.0,0.00016438,2]
[398486393,1765732252023,-151.0,0.00016438,2]
[398486394,1765732252032,-459.358842,0.00016438,2]
[398486395,1765732252043,-151.0,0.00016438,2]
[398486396,1765732252052,-151.0,0.00016438,2]
[398486397,1765732252063,-459.358842,0.00016438,2]
[398486398,1765732252075,-151.0,0.00016438,2]
[398486399,1765732252084,-151.0,0.00016438,2]
[398486400,1765732252094,-459.358842,0.00016438,2]
[398486401,1765732252104,-151.0,0.00016438,2]
[398486402,1765732252114,-459.358842,0.00016438,2]
[398486403,1765732252123,-151.0,0.00016438,2]
[398486404,1765732252132,-151.0,0.00016438,2]
[398486405,1765732252141,-459.358842,0.00016438,2]
[398486406,1765732252150,-290.424639,0.00016438,2]
[398486407,1765732252159,-459.358842,0.00016438,2]
[398486408,1765732252169,-459.358842,0.00016438,2]
[398486409,1765732252179,-459.358842,0.00016438,2]
[398486410,1765732252188,-459.358842,0.00016438,2]
[398486411,1765732252198,-459.358839,0.00016438,2]
[398486412,1765732252207,-9786.93509837,0.000169,2]
[398486413,1765732253901,-1607.7668719,0.000169,2]
[398486414,1765732253914,-925.91596818,0.000169,2]
[398486438,1765732306703,760000.0,0.0001569,2]
[398486450,1765732401815,209.57074014,0.0001482,2]
[398486451,1765732451434,166.66,0.0001528,2]
[398486452,1765732451470,166.66,0.00015602,2]
[398486496,1765732855010,955.54,7.934e-05,2]
[398486497,1765732855442,955.54,8.351e-05,2]
[398486498,1765732855671,955.54,8.769e-05,2]
[398486499,1765732855837,955.54,9.186e-05,2]
[398486500,1765732856043,955.54,9.604e-05,2]
[398486501,1765732856255,955.54,0.00010022,2]
[398486502,1765732856474,955.54,0.00010439,2]
[398486503,1765732856682,955.54,0.00010857,2]
[398486504,1765732856888,955.54,0.00011274,2]
[398486505,1765732857095,955.54,0.00011692,2]
[398486506,1765732857306,444.61,0.00012109,2]
[398486507,1765732857329,510.93,0.00012109,2]
[398486513,1765732859553,955.54,0.00012527,2]
[398486514,1765732859596,955.54,0.00012945,2]
[398486515,1765732859636,955.54,0.00013362,2]
[398486516,1765732859690,955.54,0.0001378,2]
[398486517,1765732859736,955.54,0.00014197,2]
[398486519,1765732859775,955.54,0.00014615,2]
[398486520,1765732859822,955.54,0.00015032,2]
[398486521,1765732859872,955.54,0.0001545,2]
[398486522,1765732863126,250.0,0.0001378,2]
[398486523,1765732872883,219.46687473,0.00010231,2]
[398486524,1765732873125,196.13256283,0.00010231,2]
[398486525,1765732873276,501.65512545,0.00010231,2]
[398486610,1765733133156,150.0,0.00015288,2]
[398486611,1765733136719,152.46703937,0.00015288,2]
[398486638,1765733242343,-191.34195284,0.00015723,3]
[398486639,1765733242911,781.0,0.00015689,2]
[398486640,1765733247038,-200.0,0.00015723,3]
[398486641,1765733248104,-276.86520922,0.00015723,3]
[398486642,1765733252831,200.0,0.00015665,2]
[398486643,1765733253797,-167.41834824,0.00015723,3]
[398486692,1765733432131,-163.3744897,0.00015723,3]
[398486693,1765733432141,-195.0,0.00015746,2]
[398486694,1765733432151,-281.0,0.00015746,2]
[398486695,1765733432160,-155.73537893,0.00015767,2]
[398486696,1765733432171,-1044.26462107,0.00015767,2]
[398486697,1765733432181,-1200.0,0.00015767,2]
[398486698,1765733432190,-300.0,0.00015767,2]
[398486699,1765733432200,-300.0,0.00015767,2]
[398486700,1765733432209,-1826.28672939,0.00015768,2]
[398486701,1765733432221,-669.01695779,0.00015768,2]
[398486703,1765733432232,-9680.22228626,0.00015768,2]
[398486705,1765733432256,-863.98402656,0.00015768,2]
[398486706,1765733432266,-805.94617413,0.00015785,2]
[398486707,1765733432277,-679.54382587,0.00015785,2]
[398486708,1765733432287,-500.0,0.00015799,2]
[398486709,1765733432296,-529.7237285,0.00015867,2]
[398486710,1765733432307,-425.8162715,0.00015867,2]
[398486711,1765733432317,-135.13755713,0.00015891,2]
[398486712,1765733432328,-64.86244287,0.00015891,2]
[398486714,1765733432337,-385.05,0.00015908,2]
[398486716,1765733432347,-250.0,0.00015923,2]
[398486717,1765733432356,-166.66,0.00015923,2]
[398486718,1765733432366,-551.72099553,0.00015999,2]
[398486720,1765733432375,-70442.38129316,0.00016,4]
[398486723,1765733432389,-2466.87208074,0.00016,4]
[398486725,1765733432401,-28296.37455001,0.00016,4]
[398486727,1765733432416,-10229.17355967,0.00016,4]
[398486729,1765733432426,-1111.0,0.00016005,2]
[398486731,1765733432435,-859.65316351,0.00016005,2]
[398486733,1765733432445,-300.0,0.00016005,2]
[398486735,1765733432455,-1852.42,0.00016015,2]
[398486737,1765733432466,-1111.0,0.0001606,2]
[398486739,1765733432476,-1111.0,0.00016115,2]
[398486741,1765733432487,-150.0,0.00016137,2]
[398486742,1765733432499,-1111.0,0.0001617,2]
[398486743,1765733432509,-500.0,0.00016199,2]
[398486744,1765733432518,-500.0,0.00016199,2]
[398486745,1765733432529,-500.0,0.00016199,2]
[398486746,1765733432541,-500.0,0.00016199,2]
[398486747,1765733432551,-500.0,0.00016199,2]
[398486748,1765733432561,-500.0,0.00016199,2]
[398486749,1765733432570,-500.0,0.00016199,2]
[398486750,1765733432579,-500.0,0.00016199,2]
[398486751,1765733432588,-500.0,0.00016199,2]
[398486752,1765733432598,-500.0,0.00016199,2]
[398486753,1765733432608,-500.0,0.00016199,2]
[398486754,1765733432618,-500.0,0.00016199,2]
[398486755,1765733432627,-500.0,0.00016199,2]
[398486756,1765733432637,-500.0,0.00016199,2]
[398486757,1765733432647,-500.0,0.00016199,2]
[398486758,1765733432658,-500.0,0.00016199,2]
[398486759,1765733432668,-500.0,0.00016199,2]
[398486760,1765733432678,-500.0,0.00016199,2]
[398486761,1765733432687,-500.0,0.00016199,2]
[398486762,1765733432697,-500.0,0.00016199,2]
[398486763,1765733432707,-632.7565966,0.00016199,2]
[398486764,1765733432716,-500.0,0.00016199,2]
[398486765,1765733432726,-500.0,0.00016199,2]
[398486766,1765733432736,-500.0,0.00016199,2]
[398486767,1765733432745,-500.0,0.00016199,2]
[398486768,1765733432757,-500.0,0.00016199,2]
[398486769,1765733432767,-500.0,0.00016199,2]
[398486770,1765733432777,-500.0,0.00016199,2]
[398486771,1765733432789,-500.0,0.00016199,2]
[398486772,1765733432798,-500.0,0.00016199,2]
[398486773,1765733432808,-500.0,0.00016199,2]
[398486774,1765733432818,-12105.55254849,0.000162,5]
[398486775,1765733432835,-906.0,0.000162,5]
[398486776,1765733432846,-14488.90228201,0.000162,5]
[398486777,1765733432867,-727.65809693,0.000162,5]
[398486778,1765733432882,-717.92687088,0.000162,5]
[398486781,1765733438040,-753.25136983,0.000162,5]
[398486782,1765733438052,-4125.73666421,0.000162,5]
[398486783,1765733438061,-1111.0,0.00016225,2]
[398486784,1765733438071,-166.66,0.00016245,2]
[398486785,1765733438080,-500.0,0.00016274,2]
[398486786,1765733438091,-3498.24333579,0.000164,2]
[398486787,1765733438103,-1680.96,0.000164,2]
[398486788,1765733438115,-369.32,0.000164,2]
[398486789,1765733438132,-3039.84169753,0.000164,2]
[398486790,1765733438143,-2418.07525,0.000164,2]
[398486911,1765733439984,-3288.33037723,0.000164,2]
[398486914,1765733440196,-2663.2606002,0.000164,2]
[398486915,1765733440208,-3600.26473808,0.000164,2]
[398486916,1765733440218,-565.68490668,0.00016438,2]
[398486917,1765733440228,-927.32,0.00016438,2]
[398486918,1765733440237,-272.15,0.00016485,2]
[398486919,1765733440247,-166.66,0.00016567,2]
[398486920,1765733440256,-301.38,0.00016576,2]
[398486921,1765733440265,-1021.6899246,0.0001666,2]
[398486922,1765733440275,-743.0,0.00016695,2]
[398486923,1765733440284,-1651.0,0.00016699,2]
[398486924,1765733440293,-150.0,0.00016699,2]
[398486925,1765733440303,-150.0,0.00016699,2]
[398486926,1765733440312,-1000.0,0.000167,2]
[398486927,1765733440321,-536.36011153,0.0001673,2]
[398486928,1765733440333,-1483.09221847,0.0001673,2]
[398486929,1765733440343,-151.0,0.00016763,2]
[398486930,1765733440352,-500.0,0.00016763,2]
[398486931,1765733440371,-151.0,0.00016763,2]
[398486932,1765733440381,-500.0,0.00016763,2]
[398486933,1765733440391,-151.0,0.00016763,2]
[398486934,1765733440401,-500.0,0.00016763,2]
[398486935,1765733440411,-151.0,0.00016763,2]
[398486936,1765733440424,-1000.0,0.00016763,2]
[398486937,1765733440434,-500.0,0.00016763,2]
[398486938,1765733440444,-733.87319853,0.00016763,2]
[398486939,1765733440457,-266.12680147,0.00016763,2]
[398486940,1765733440467,-151.0,0.00016763,2]
[398486941,1765733440476,-1000.0,0.00016763,2]
[398486942,1765733440485,-500.0,0.00016763,2]
[398486943,1765733440495,-368.68110564,0.00016763,2]
[398486944,1765733440508,-285.35515005,0.00016763,2]
[398486950,1765733443047,-345.96374431,0.00016763,2]
[398486951,1765733443057,-151.0,0.00016763,2]
[398486952,1765733443066,-1000.0,0.00016763,2]
[398486953,1765733443076,-500.0,0.00016763,2]
[398486954,1765733443086,-1000.0,0.00016763,2]
[398486955,1765733443095,-151.0,0.00016763,2]
[398486956,1765733443105,-1000.0,0.00016763,2]
[398486957,1765733443115,-500.0,0.00016763,2]
[398486958,1765733443124,-1000.0,0.00016763,2]
[398486959,1765733443135,-1000.0,0.00016763,2]
[398486960,1765733443144,-151.0,0.00016763,2]
[398486961,1765733443154,-1000.0,0.00016763,2]
[398486962,1765733443164,-500.0,0.00016763,2]
[398486963,1765733443173,-1000.0,0.00016763,2]
[398486964,1765733443183,-1000.0,0.00016763,2]
[398486965,1765733443193,-151.0,0.00016763,2]
[398486966,1765733443202,-1000.0,0.00016763,2]
[398486967,1765733443212,-500.0,0.00016763,2]
[398486968,1765733443227,-1000.0,0.00016763,2]
[398486969,1765733443237,-911.98806588,0.00016763,2]
[398486970,1765733443250,-88.01193412,0.00016763,2]
[398486971,1765733443262,-151.0,0.00016763,2]
[398486972,1765733443272,-1000.0,0.00016763,2]
[398486973,1765733443282,-500.0,0.00016763,2]
[398486974,1765733443295,-1000.0,0.00016763,2]
[398486975,1765733443305,-1000.0,0.00016763,2]
[398486976,1765733443314,-151.0,0.00016763,2]
[398486977,1765733443324,-1000.0,0.00016763,2]
[398486978,1765733443333,-500.0,0.00016763,2]
[398486979,1765733443343,-1000.0,0.00016763,2]
[398486980,1765733443353,-1000.0,0.00016763,2]
[398486981,1765733443364,-1000.0,0.00016763,2]
[398486982,1765733443374,-1000.0,0.00016763,2]
[398486983,1765733443384,-1000.0,0.00016763,2]
[398486984,1765733443393,-1000.0,0.00016763,2]
[398486985,1765733443402,-1000.0,0.00016763,2]
[398486986,1765733443414,-219.98795651,0.00016763,2]
[398486996,1765733445934,-415.83712696,0.00016763,2]
[398486997,1765733445946,-364.17491653,0.00016763,2]
[398486998,1765733445956,-1000.0,0.00016763,2]
[398486999,1765733445966,-151.0,0.00016763,2]
[398487000,1765733445975,-330.50588776,0.00016763,2]
[398487001,1765733446145,-463.76201003,0.00016763,2]
[398487017,1765733463678,1000.0,0.00013699,2]
[398487069,1765733557297,200.0,0.00015519,2]
[398487070,1765733557908,235.23248601,0.00015519,2]
[398487132,1765734036812,152.14,0.00015501,2]
[398487140,1765734188611,155.152779,7.945e-05,2]
[398487141,1765734319634,150.0,0.00015288,2]
[398487142,1765734319687,150.0,0.00015288,2]
[398487143,1765734319722,264.24246333,0.00015288,2]
[398487144,1765734322065,150.0,0.00015288,2]
[398487145,1765734325506,150.0,0.00015288,2]
[398487146,1765734325694,150.0,0.00015288,2]
[398487147,1765734328835,150.0,0.00015288,2]
[398487148,1765734337786,150.0,0.00015288,2]
[398487149,1765734337820,151.01633983,0.00015288,2]
[398487151,1765734378655,150.0,0.00015374,2]
[398487153,1765734514518,500.0,0.00015715,2]
[398487161,1765734609746,6452.8,0.00015248,2]
[398487162,1765734618641,784.4956798,0.000157,2]
[398487174,1765734632491,-243.05795763,0.00015754,2]
[398487175,1765734632501,-250.0,0.00015789,2]
[398487176,1765734632510,-340.5883923,0.00015802,2]
[398487177,1765734632520,-151.11,0.00015815,2]
[398487179,1765734632529,-5472.88,0.00015815,2]
[398487181,1765734632539,-150.0,0.00015854,2]
[398487183,1765734632548,-1200.0,0.00015899,2]
[398487185,1765734632557,-513.45812684,0.000159,2]
[398487187,1765734632567,-513.45812682,0.000159,2]
[398487189,1765734632576,-343.47,0.00015909,2]
[398487191,1765734632586,-513.45812682,0.00015932,2]
[398487193,1765734632595,-300.0,0.00016014,2]
[398487195,1765734632605,-300.0,0.00016014,2]
[398487197,1765734632614,-1200.0,0.00016015,2]
[398487199,1765734632624,-513.45812682,0.00016022,2]
[398487201,1765734632633,-226.94530719,0.00016106,2]
[398487203,1765734632642,-513.45812682,0.00016111,2]
[398487205,1765734632651,-150.0,0.00016137,2]
[398487207,1765734632660,-12528.79212367,0.0001619,2]
[398487209,1765734632672,-316.22674489,0.0001619,2]
[398487211,1765734632683,-3372.79841062,0.0001619,2]
[398487213,1765734632695,-1434.71042877,0.0001619,2]
[398487216,1765734632706,-473.630693,0.0001619,2]
[398487218,1765734632717,-1305.96891855,0.0001619,2]
[398487220,1765734632733,-638.67352101,0.0001619,2]
[398487222,1765734632743,-74418.57258758,0.0001619,2]
[398487225,1765734632757,-34189.93758166,0.0001619,2]
[398487227,1765734632770,-14934.72978381,0.0001619,2]
[398487229,1765734632783,-44388.41030303,0.0001619,2]
[398487232,1765734632794,-7723.26847515,0.0001619,2]
[398487234,1765734632811,-2083.5064752,0.0001619,2]
[398487236,1765734632824,-1996.856654,0.0001619,2]
[398487238,1765734632836,-805.848,0.0001619,2]
[398487241,1765734638123,-243.05795763,0.00015927,2]
[398487242,1765734638133,-1230.10204237,0.0001619,2]
[398487243,1765734638229,-534.58553686,0.0001619,2]
[398487244,1765734638240,-8597.35043558,0.0001619,2]
[398487245,1765734638253,-1611.51836,0.0001619,2]
[398487246,1765734638264,-704.69802425,0.0001619,2]
[398487247,1765734638274,-513.45812682,0.000162,2]
[398487248,1765734638283,-274.0,0.00016206,2]
[398487249,1765734638292,-1455.65128896,0.0001621,2]
[398487250,1765734638304,-1049.16699306,0.0001621,2]
[398487251,1765734638336,-384.38392,0.0001621,2]
[398487252,1765734638347,-1888.38,0.0001621,2]
[398487259,1765734640429,-539.80444447,0.00016189,2]
[398487260,1765734640439,-738.13664558,0.0001621,2]
[398487261,1765734640448,-300.0,0.00016229,2]
[398487262,1765734640458,-1706.31932269,0.00016238,2]
[398487263,1765734640467,-166.67,0.00016271,2]
[398487264,1765734640478,-163.60104844,0.00016287,2]
[398487265,1765734640498,-306.8858115,0.00016287,2]
[398487314,1765734645559,-193.71448469,0.00016189,2]
[398487315,1765734645569,-400.60009562,0.00016189,2]
[398487316,1765734645581,-99.39990438,0.00016189,2]
[398487317,1765734645590,-500.0,0.00016189,2]
[398487318,1765734645603,-500.0,0.00016189,2]
[398487319,1765734645612,-142.16427256,0.00016189,2]
[398487320,1765734646119,-243.05795763,0.000161,2]
[398487321,1765734646129,-261.96000653,0.00016189,2]
[398487322,1765734646173,-95.87572091,0.00016189,2]
[398487323,1765734646182,-500.0,0.00016189,2]
[398487324,1765734646192,-500.0,0.00016189,2]
[398487325,1765734646201,-402.56576252,0.00016189,2]
[398487326,1765734646210,-500.0,0.00016189,2]
[398487327,1765734646219,-500.0,0.00016189,2]
[398487328,1765734646229,-500.0,0.00016189,2]
[398487329,1765734646238,-500.0,0.00016189,2]
[398487330,1765734646247,-500.0,0.00016189,2]
[398487331,1765734646257,-500.0,0.00016189,2]
[398487332,1765734646266,-500.0,0.00016189,2]
[398487333,1765734646276,-500.0,0.00016189,2]
[398487334,1765734646285,-500.0,0.00016189,2]
[398487335,1765734646294,-500.0,0.00016189,2]
[398487336,1765734646303,-500.0,0.00016189,2]
[398487337,1765734646312,-500.0,0.00016189,2]
[398487338,1765734646325,-500.0,0.00016189,2]
[398487339,1765734646335,-500.0,0.00016189,2]
[398487340,1765734646345,-500.0,0.00016189,2]
[398487341,1765734646354,-500.0,0.00016189,2]
[398487342,1765734646363,-500.0,0.00016189,2]
[398487343,1765734646373,-500.0,0.00016189,2]
[398487344,1765734646382,-450.47664352,0.00016189,2]
[398487345,1765734646392,-255.09780883,0.00016189,2]
[398487346,1765734646406,-500.0,0.00016189,2]
[398487347,1765734646415,-500.0,0.00016189,2]
[398487348,1765734646425,-500.0,0.00016189,2]
[398487349,1765734646434,-500.0,0.00016189,2]
[398487350,1765734646443,-500.0,0.00016189,2]
[398487351,1765734646453,-500.0,0.00016189,2]
[398487352,1765734646463,-500.0,0.00016189,2]
[398487353,1765734646472,-500.0,0.00016189,2]
[398487354,1765734646481,-500.0,0.00016189,2]
[398487355,1765734646491,-500.0,0.00016189,2]
[398487356,1765734646500,-500.0,0.00016189,2]
[398487357,1765734646509,-500.0,0.00016189,2]
[398487358,1765734646519,-500.0,0.00016189,2]
[398487359,1765734646528,-500.0,0.00016189,2]
[398487360,1765734646537,-500.0,0.00016189,2]
[398487361,1765734646546,-500.0,0.00016189,2]
[398487362,1765734646555,-500.0,0.00016189,2]
[398487363,1765734646565,-500.0,0.00016189,2]
[398487364,1765734646574,-500.0,0.00016189,2]
[398487365,1765734646584,-500.0,0.00016189,2]
[398487366,1765734646593,-500.0,0.00016189,2]
[398487367,1765734646602,-500.0,0.00016189,2]
[398487368,1765734646611,-500.0,0.00016189,2]
[398487369,1765734646620,-500.0,0.00016189,2]
[398487370,1765734646629,-500.0,0.00016189,2]
[398487371,1765734646638,-500.0,0.00016189,2]
[398487372,1765734646648,-500.0,0.00016189,2]
[398487373,1765734646657,-500.0,0.00016189,2]
[398487374,1765734646666,-500.0,0.00016189,2]
[398487375,1765734646675,-500.0,0.00016189,2]
[398487376,1765734646684,-500.0,0.00016189,2]
[398487377,1765734646693,-500.0,0.00016189,2]
[398487378,1765734646704,-5045.23198759,0.00016287,2]
[398487379,1765734646714,-552.61,0.00016287,2]
[398487380,1765734646723,-200.0,0.0001629,2]
[398487381,1765734646732,-621.25282754,0.0001629,2]
[398487382,1765734646741,-1000.0,0.0001629,2]
[398487383,1765734646751,-500.0,0.0001629,2]
[398487384,1765734646760,-1000.0,0.0001629,2]
[398487385,1765734646769,-1000.0,0.0001629,2]
[398487386,1765734646778,-57.94987992,0.0001629,2]
[398487387,1765734646799,-442.05012008,0.0001629,2]
[398487388,1765734646808,-205.73210221,0.0001629,2]
[398487389,1765734646817,-1093.04860208,0.0001629,2]
[398487390,1765734646827,-500.0,0.0001629,2]
[398487391,1765734646836,-500.0,0.0001629,2]
[398487392,1765734646848,-500.0,0.0001629,2]
[398487393,1765734646858,-500.0,0.0001629,2]
[398487394,1765734646868,-500.0,0.0001629,2]
[398487395,1765734646877,-500.0,0.0001629,2]
[398487396,1765734646887,-47.13564023,0.0001629,2]
[398487397,1765734653334,492.30273804,0.000109,5]
[398487398,1765734653358,2808.69726196,0.000109,5]
[398487399,1765734684571,2223.0,0.000116,5]
[398487400,1765734688362,336.4078,0.00015689,2]
[398487401,1765734726837,-329.33997296,0.00015733,2]
[398487402,1765734728386,-207.4,0.00015733,2]
[398487404,1765734730896,-215.0738,0.00015733,2]
[398487405,1765734732566,-195.0,0.00015733,2]
[398487407,1765734853090,1279.04,0.00015523,2]
[398487474,1765735020487,446.0895,0.00015633,2]
[398487475,1765735021260,1000.0,0.00015618,2]
[398487506,1765735107956,185.6,0.00012241,2]
[398487507,1765735130591,1940.475114,0.00015654,2]
[398487509,1765735211820,2456.32,0.00015305,2]
[398487510,1765735236819,-281.0,0.00015733,2]
[398487511,1765735236841,-195.0,0.00015733,2]
[398487512,1765735236864,-81.90269071,0.00015733,2]
[398487513,1765735277994,223.0,0.00011,5]
[398487521,1765735361047,3435.595536,0.00015654,2]
[398487522,1765735432064,3752.92,0.00015163,2]
[398487528,1765735506897,150.0,0.00015115,2]
[398487529,1765735507208,150.0,0.00015115,2]
[398487530,1765735507274,150.0,0.00015675,2]
[398487531,1765735510876,150.0,0.00015115,2]
[398487532,1765735515043,150.0,0.00015115,2]
[398487533,1765735517990,150.00000001,0.00015115,2]
[398487534,1765735521380,151.14485449,0.00015115,2]
[398487535,1765735527329,150.0,0.00015115,2]
[398487536,1765735528979,150.0,0.00015115,2]
[398487537,1765735667295,315.22,0.00015127,2]
[398487540,1765735731729,970.289436,0.00015654,2]
[398487569,1765735789717,166.66,0.00014364,2]
[398487570,1765735789908,8.1801735,0.00014666,2]
[398487572,1765735789929,158.4798265,0.00014666,2]
[398487575,1765735790193,166.66,0.00014969,2]
[398487577,1765735790402,166.66,0.00015271,2]
[398487580,1765735790590,166.66,0.00015573,2]
[398487622,1765735832342,-55.70353633,0.00015733,2]
[398487623,1765735832352,-306.84057565,0.00015779,2]
[398487624,1765735832361,-151.61,0.00015809,2]
[398487625,1765735832373,-152.28,0.00015809,2]
[398487626,1765735832383,-152.76,0.00015809,2]
[398487627,1765735832392,-151.6,0.00015837,2]
[398487628,1765735832401,-150.66,0.00015837,2]
[398487629,1765735832410,-151.31,0.00015875,2]
[398487630,1765735832420,-166.66,0.00015876,2]
[398487631,1765735832429,-152.84,0.00015912,2]
[398487632,1765735832438,-150.0,0.00015955,2]
[398487633,1765735832448,-150.0,0.00015955,2]
[398487634,1765735832457,-300.0,0.0001598,2]
[398487635,1765735832467,-493.00236762,0.0001598,2]
[398487639,1765735832673,-570.88444884,0.0001598,2]
[398487640,1765735832684,-136.11318354,0.0001598,2]
[398487641,1765735832694,-2064.58426118,0.00015981,2]
[398487642,1765735832816,-58764.12183882,0.00015981,2]